Cogmind - Beta 15 @@@ ROGUE MODE // 2025.07.07 @ 03:28:02 Player: Finn Result: Destroyed by S-10 Pest with Light Assault Rifle Performance ------------- Evolutions (0) 0 Regions Visited (1) 200 Robots Destroyed (22) 110 Value Destroyed (246) 246 Prototype IDs (0) 0 Alien Tech Used (0) 0 Bonus (0) 0 TOTAL SCORE: 556 Bonus ------- None Cogmind --------- Core Integrity 0/250 Matter 292/300 Energy 99/100 System Corruption 0% Temperature Cool (0) Movement Core (100) Ox1 Location -10/Materials Parts ------- > --- POWER (1) -------- (None) > --- PROPULSION (2) --- (None) > --- UTILITY (2) ------ Small Storage Unit > --- WEAPON (2) ------- (None) > --- INVENTORY (8) ---- (None) Peak State ------------ > --- POWER ------------ Light Ion Engine > --- PROPULSION ------- Light Treads Light Treads > --- UTILITY ---------- Small Storage Unit > --- WEAPON ----------- EM Pulse Gun Small Laser > --- INVENTORY -------- (None) [Rating: 6] Favorites ----------- Power Light Ion Engine Engine Light Ion Engine Propulsion Light Treads Treads Light Treads Utility Small Storage Unit Storage Small Storage Unit Weapon EM Pulse Gun Energy Gun EM Pulse Gun Ballistic Gun Light Assault Rifle Build | -11 -10 ------- Run | Yrd Mat Slots Evolved . | . . Power . | . . Propulsion . | . . Utility . | . . Weapon . | . . Parts Attached 7 | 5 2 Power 1 | 1 . Engine 1 | 1 . Core . | . . Reactor . | . . Propulsion 2 | 2 . Treads 2 | 2 . Leg . | . . Wheel . | . . Hover . | . . Flight . | . . Utility 1 | 1 . Device . | . . Storage 1 | 1 . Processor . | . . Hackware . | . . Protection . | . . Artifact . | . . Weapon 3 | 1 2 Energy Gun 2 | 1 1 Energy Cannon . | . . Ballistic Gun 1 | . 1 Ballistic Cannon . | . . Launcher . | . . Special Weapon . | . . Impact Weapon . | . . Slashing Weapon . | . . Piercing Weapon . | . . Special Melee Weapon . | . . Unidentified Prototypes . | . . Parts Lost 6 | . 6 Power 1 | . 1 Propulsion 2 | . 2 Utility . | . . Weapon 3 | . 3 Highest Loss Streak 3 | . 3 To Critical Strikes . | . . Average Backups . | . . Power . | . . Propulsion . | . . Utility . | . . Weapon . | . . Tool/Special . | . . Unused Backups . | . . Power . | . . Propulsion . | . . Utility . | . . Weapon . | . . Tool/Special . | . . Average Slot Usage (%) 62 | . 62 Engine 10 | . 10 Treads 22 | . 22 Storage 14 | . 14 Energy Gun 11 | . 11 Ballistic Gun 3 | . 3 Peak Build Rating 6 | 5 6 Average Rating 4 | 4 4 On Entrance 2 | . 5 Naked Turns . | . . Heaviest Build 11 | 10 11 Greatest Support 40 | 40 40 Greatest Overweight (x) 1 | . 1 Average Overweight (x) . | . . Largest Inventory Capacity 8 | 8 8 Average Capacity 7 | 7 8 Most Carried 5 | 5 1 Average Carried . | . . Final Capacity 8 | 8 8 Final Carried . | . . Class Distribution -------------------- 100% | Mutant Dominant Class ---------------- Mutant | -10/Materials Resources | -11 -10 ----------- Run | Yrd Mat Matter Collected 277 | 250 27 Remotely . | . . Salvage Created 516 | 196 320 Parts 50 | 17 33 Haulers Intercepted . | . . Recyclers Shooed 1 | 1 . Parts Field Recycled . | . . Retrieved Matter . | . . Parts Self-Destructed . | . . Prevented . | . . Kills | -11 -10 ------- Run | Yrd Mat Combat Hostiles Destroyed 13 | . 13 Guns 12 | . 12 AOE 1 | . 1 Classes Destroyed 5 | 3 2 Worker 3 | 2 1 Tunneler 5 | 5 . Recycler 1 | 1 . Swarmer 10 | . 10 Grunt 3 | . 3 Best Kill Streak 6 | 4 6 Combat Bots Only 6 | . 6 Max Kills in Single Turn 1 | 1 1 Gunslinging . | . . Exploded 1 | . 1 Melee . | . . Uniques/NPCs Destroyed . | . . Combat | -11 -10 -------- Run | Yrd Mat Hostile Shots Fired 121 | . 121 Missed 30 | . 30 Hits 91 | . 91 Projectile 91 | . 91 Critical Strikes 2 | . 2 Damage Taken 762 | . 762 Core 251 | . 251 Absorbed by Shields . | . . Core Remaining (%) 100 | 100 . Volleys Fired 81 | 28 53 Largest 2 | 1 2 Hottest 80 | 40 80 Shots Fired 88 | 28 60 Gun 88 | 28 60 Cannon . | . . Launcher . | . . Special . | . . Kinetic 32 | . 32 Thermal 7 | . 7 Explosive . | . . Electromagnetic 49 | 28 21 Robot Hit Streak 5 | 4 5 Robot Miss Streak 3 | 2 3 Penetration Max . | . . Secondary Targets . | . . Shots Hit Robots 49 | 17 32 Core Hits 28 | 9 19 Critical Kills . | . . Critical Parts Destroyed . | . . Critical Strikes 1 | . 1 Corrupt 1 | . 1 Melee Attacks . | . . Impact . | . . Slashing . | . . Piercing . | . . Sneak Attacks . | . . Combat Hostiles . | . . Follow-up Attacks . | . . Damage Inflicted 665 | 236 429 Guns 583 | 236 347 Cannons . | . . Explosions 82 | . 82 Melee . | . . Ramming . | . . Kinetic 182 | . 182 Thermal 103 | . 103 Explosive . | . . Electromagnetic 380 | 236 144 Impact . | . . Slashing . | . . Piercing . | . . Highest Corruption . | . . Average Corruption . | . . Corruption Purged . | . . Corruption Blocked . | . . Overload Shots . | . . Overflow Damage . | . . Projectiles . | . . Explosions . | . . Melee . | . . Knockbacks . | . . Impact . | . . Kinetic . | . . Secondary . | . . Self-Inflicted Damage . | . . Shots . | . . Rammed . | . . Targets Rammed . | . . Kicked . | . . Crushed . | . . Highest Temperature 108 | 2 108 Average Temperature 44 | 2 45 Received Heat Transfer 78 | . 78 Siege Activations . | . . Martial Activations . | . . Shielding Activations . | . . Robots Disrupted . | . . Combat Hostiles . | . . Robots Corrupted . | . . Combat Hostiles . | . . Parts Fried 1 | 1 . Impact Corruptions . | . . Robots Melted . | . . Combat Hostiles . | . . Parts Melted 1 | . 1 Heat Transferred 200 | . 200 Parts Sabotaged . | . . Parts Stolen . | . . Parts Stripped . | . . Power Chain Reactions 1 | . 1 Alert | -11 -10 ------- Run | Yrd Mat Maximum Alert Level . | . . Low Security (%) 100 | 100 100 Level 1 . | . . Level 2 . | . . Level 3 . | . . Level 4 . | . . Level 5 . | . . High Security . | . . Max Security . | . . Peak Influence 167 | 15 167 Initial . | . . Average 37 | 2 56 Influence Increases 381 | 40 341 Destroy 0b10 Robot/C 260 | . 260 Destroy 0b10 Robot/NC 45 | 40 5 Destroy Leader 40 | . 40 Successful Hack 4 | . 4 Destroy Structure 2 | . 2 Lose Combat Pursuer 30 | . 30 Influence Decreases 222 | 40 182 Time Decay 162 | 40 122 Lost Part 60 | . 60 Squads Dispatched 1 | . 1 Investigation . | . . Extermination . | . . Reinforcement 1 | . 1 Assault . | . . Garrison . | . . Intercept . | . . Searches Triggered . | . . Construction Impeded . | . . Haulers Reinforced . | . . Active Scanning Responses . | . . Cargo Convoy Interrupts . | . . Stealth | -11 -10 --------- Run | Yrd Mat Distress Signals 4 | . 4 Communications Jammed . | . . Distress Signals . | . . Times Spotted 23 | . 23 Peak Tracking Total 7 | . 7 Tactical Retreats 1 | . 1 Traps | -11 -10 ------- Run | Yrd Mat Traps Triggered . | . . Indirectly . | . . Trap Hack Attempts . | . . Triggered . | . . Disarmed . | . . Reprogrammed . | . . Reused . | . . Traps Extracted . | . . Installed . | . . Triggered . | . . Machines | -11 -10 ---------- Run | Yrd Mat Machines Disabled . | . . Max in Single Turn . | . . Machines Repaired . | . . Machines Dismantled . | . . Machines Sabotaged . | . . Overloaded Fab Kills . | . . Hacking | -11 -10 --------- Run | Yrd Mat Machines Accessed 2 | . 2 Terminals 2 | . 2 Fabricators . | . . Repair Stations . | . . Recycling Units . | . . Scanalyzers . | . . Garrison Access . | . . Total Hacks 3 | . 3 Successful 2 | . 2 Failed 1 | . 1 Catastrophic . | . . Database Lockouts . | . . Manual . | . . Terminals 3 | . 3 Fabricators . | . . Repair Stations . | . . Recycling Units . | . . Scanalyzers . | . . Garrison Access . | . . Terminal Hacks 2 | . 2 Locate Traps 1 | . 1 Recall Reinforcements 1 | . 1 Fabricator Hacks . | . . Repair Station Hacks . | . . Recycling Unit Hacks . | . . Scanalyzer . | . . Garrison Access Hacks . | . . Unauthorized Hacks . | . . Terminals . | . . Fabricators . | . . Repair Stations . | . . Recycling Units . | . . Scanalyzers . | . . Garrison Access . | . . Data Cores Recovered . | . . Used . | . . Hacking Detections 2 | . 2 Full Trace Events . | . . Feedback Events . | . . Feedback Blocked . | . . Robot Schematics Acquired . | . . Robots Built . | . . Authchips . | . . Time . | . . Total Robot Build Rating . | . . Part Schematics Acquired . | . . Parts Built . | . . Authchips . | . . Time . | . . Total Part Build Rating . | . . Parts Repaired . | . . Time . | . . Parts Recycled . | . . Recycled Matter . | . . Retrieved Matter . | . . Retrieved Components . | . . Parts Scanalyzed . | . . Part Schematics Acquired . | . . Parts Damaged . | . . Bothacking | -11 -10 ------------ Run | Yrd Mat Used RIF Installer . | . . Robots Hacked . | . . Non-combat . | . . Combat . | . . Robot Hacks Applied . | . . Relay Couplers Released . | . . Fabnet Peak Effective % . | . . Robots Rewired . | . . Allies Hacked . | . . Hacks Repelled . | . . Allies | -11 -10 -------- Run | Yrd Mat Total Allies . | . . Largest Group . | . . Highest-Rated Group . | . . Highest-Rated Ally . | . . Total Orders . | . . Ally Attacks . | . . Total Damage . | . . Kills . | . . Allies Corrupted . | . . Allies Melted . | . . Intel | -11 -10 ------- Run | Yrd Mat Active Infowar (turns) . | . . Robot Analysis Total . | . . Derelict Logs Recovered . | . . Drone Launches . | . . Drone Recoveries . | . . Exploration | -11 -10 ------------- Run | Yrd Mat Turns Passed 621 | 219 402 Spaces Moved 320 | 117 203 Core 85 | 30 55 Treads 235 | 87 148 Legs . | . . Wheels . | . . Hover . | . . Flight . | . . Fastest Speed 50 | 50 100 Average Speed 139 | 131 143 Slowest Speed 160 | 160 160 Overloaded Moves . | . . Propulsion Burnouts . | . . Robots Hopped . | . . Potential Cave-ins . | . . Cave-ins Triggered . | . . Exploration Rate (%) 26 | 3 50 Regions Visited 1 Branch Regions . Pre-discovered Areas . | . . Known Exits Taken . | . . Unknown Exits Taken 1 | 1 . Scrap Searched . | . . Spaces Dug . | . . Terrain Destroyed 2 | . 2 Melee . | . . Projectile . | . . AOE 2 | . 2 Terrain Rammed . | . . Walls Destroyed . | . . Machines Disabled . | . . Actions | -11 -10 --------- Run | Yrd Mat Total 414 | 154 260 Wait . | . . Move 319 | 116 203 Hop . | . . Pick Up 7 | 5 2 Fast Attach . | . . Attach 7 | 5 2 Detach . | . . Swap . | . . Drop . | . . Fire 81 | 28 53 Melee . | . . Ram . | . . Kick . | . . Crush . | . . Escape Stasis . | . . Rewire . | . . Trap . | . . Miscellaneous . | . . Route ------- -11/Scrapyard -10/Materials (discovered 1 exit: [*Min]) History --------- Turn | Location | Event 2 | -11/Scrapyard | Met Revision 17 6 | -11/Scrapyard | Discovered new exit (range 15) 220 | -11/Scrapyard | Entered Materials 316 | -10/Materials | Build established: Mutant 559 | -10/Materials | Discovered new exit (range 15) 575 | -10/Materials | Lost 3 parts (1p2n) 587 | -10/Materials | Core integrity fell below 50% 601 | -10/Materials | Core integrity fell below 20% 622 | -10/Materials | Destroyed by S-10 Pest with Light Assault Rifle Last Messages --------------- 00529_ Lgt. Ion Engine destroyed. 00531_ K-01 Serf cleans the Integration Channel. 00534_ S-10 Pest destroyed. 00535_ Lgt. Treads destroyed. 00535_ K-01 Serf destroyed. 00543_ S-10 Pest destroyed. 00544_ Lgt. Treads destroyed. 00545_ K-01 Serf collects debris. 00548_ Connecting with Terminal... >>Recall(Reinforcements) Establishing remote squad link... No tasked reinforcement squads found. 00555_ S-10 Pest destroyed. 00559_ EXIT=FOUND 00561_ K-01 Serf collects debris. 00584_ S-10 Pest destroyed. 00606_ Lgt. Assault Rifle destroyed. 00614_ R-06 Scavenger collects Flight Unit. 00616_ K-01 Serf collects debris. Map ----- +----------------------------------------------------+ | ????????????????????????????????????????????#####" | | ????????????????????????????????????????????#^ | | ??????????????? ??????????????????????????#^ " | | ??????????????? #?????????????????????????# ^ " | | ???????????????% #?????????????????????????#^ ^ " | | ???????????????= #?????????????????????????# | | ??????????????? #?????????????????????????###### | | ??????????????? #???????????????????????######## | | ??????????????# #???????????????????????# | | ??????????????+ #???????????????????????# | | ??????????????# #?????? ??????????????# """"" | | ??????????????# #?????? #?????????????# """"" | | ??????????????# #?????? #?????????????# """"" | | ??????????????# #?????# ###???????????# """"" | | ??????????????# #????? """???????????# """"" | | ??????????????# #????? "???????????# | | ??????????????# #????? !"#??????????+ | | ??????????????# #????# < ""???????????# """"" | | ??????????????# #????# |????????????# """"" | | ??????????????# #????# ????????????# """"" | | ??????????????# #????? "?????????????# """"" | | ??????????????# ####### #?????????????# """"" | | ??????????????# # # #?????????????# | | ??????????????# + # #????????????## | | ??????????????# # # ^#????????????#" | | ??????????????# # #@ ^###############% | | ??????????????# # # ^ % | | ??????????????# ###+### ^ | | ??????????????# ### ###s ^ | | ??????????????# =% s % | | ??????????????# % ! | | ??????????????# % k T ! | | ??????????????# % ! | | ??????????????# k k | | ??????????????#% % | | ??????????????#[ != ##r###########+# | | ??????????? *%= #=%=%#???????? | | ???????? """ """ #*=% #???????? ? | | ???????? """"""""" # #?????????? | | ????????########+## """"" # T#????????? | | ??????????????????# # ##????????? | | ??????????????????# # =#?????????? | | ??????????????????# """ # #?????????? | | ??????????????????# """ ######?????????? | | ??????????????????# "?? ??????????????? | | ??????????????????# ???? ??????????????? | | ??????????????????# ???? ?????????????? | | ??????????????????# ????##########?????????????? | | ???????????????????###???????????????????????????? | | ?????????????????????????????????????????????????? | +----------------------------------------------------+ Best States ------------- Heat Dissipation 25 Energy Generation 10 Energy Capacity 125 Matter Stores 300 Matter Capacity 300 Sight Range 16 Terrain Scan Density 10 Evasion (%) 50 Recoil Reduction 2 Item Schematics ----------------- None Robot Schematics ------------------ None Fabricated ------------ Nothing Repaired ---------- Nothing Alien Tech Used ----------------- None Achievements -------------- None Challenges ------------ None Game ------ Seed TowerGuidedScreen Manual? 0 Play Time 00:06:29 Cumulative 14.0 hours Start 2025.07.07 @ 03:21:28 End 2025.07.07 @ 03:28:02 Sessions 1 Manual Loads 0 Difficulty Rogue Special Mode None Game No. 25 Rogue 8 Adventurer 15 Explorer 2 Win Type - Total 0 Types 0/0/0/0/0/0/0/0/0/0 Lore% 11 Gallery% 18 Achievement% 19 Wizard Run 0 Options --------- Layout 1 ASCII 0 Keyboard 0 Movement Mouse Keybinds 0 Fullscreen 1 Font 24/Smallcaps Map View 50x35 Zoom Use 0% Tactical HUD 1 Map Filters NONE Filters NONE Steam 1 RUN: e0fc36c2-ac2d-48bf-856d-3635ef71d816